fUSD/lending_fUSD_20260107
["ID","MTS","AMOUNT","RATE_DAILY","PERIOD"]
[400726013,1767800610609,-10000.01,0.00015124,2]
[400726014,1767800610749,-10000.01,0.00015124,2]
[400726015,1767800610812,-2293.74543902,0.00015124,2]
[400726016,1767800610907,-5412.51912196,0.00015124,2]
[400726017,1767800611027,-10000.01,0.00015124,2]
[400726018,1767800611167,-10000.01,0.00015124,2]
[400726019,1767800611270,-10000.01,0.00015124,2]
[400726020,1767800611411,-10000.01,0.00015124,2]
[400726021,1767800611537,-2354.66042196,0.00015124,2]
[400726022,1767800611566,-5290.68915608,0.00015124,2]
[400726023,1767800613059,-2500.0,0.00015124,2]
[400726024,1767800613126,-5000.01,0.00015139,2]
[400726025,1767800617009,-554.210444,0.00015139,2]
[400726026,1767800617044,-300.0,0.00015214,2]
[400726027,1767800617081,-609.83029456,0.00015215,2]
[400726028,1767800617119,-151.0,0.00015215,2]
[400726029,1767800617155,-151.0,0.00015215,2]
[400726030,1767800617189,-151.0,0.00015215,2]
[400726031,1767800617224,-151.0,0.00015215,2]
[400726032,1767800617259,-151.0,0.00015215,2]
[400726033,1767800617295,-151.0,0.00015215,2]
[400726034,1767800617331,-151.0,0.00015215,2]
[400726035,1767800617366,-151.0,0.00015215,2]
[400726036,1767800617402,-151.0,0.00015215,2]
[400726037,1767800617437,-151.0,0.00015215,2]
[400726038,1767800617473,-151.0,0.00015215,2]
[400726039,1767800617516,-500.0,0.00015223,2]
[400726040,1767800617558,-500.0,0.00015223,2]
[400726041,1767800617601,-500.0,0.00015223,2]
[400726042,1767800617643,-249.92852288,0.00015223,2]
[400726043,1767800617759,-250.07147712,0.00015223,2]
[400726044,1767800617799,-500.0,0.00015223,2]
[400726045,1767800617841,-500.0,0.00015223,2]
[400726046,1767800617888,-500.0,0.00015223,2]
[400726047,1767800617940,-500.0,0.00015223,2]
[400726048,1767800617982,-500.0,0.00015223,2]
[400726049,1767800618025,-500.0,0.00015223,2]
[400726050,1767800618068,-500.0,0.00015223,2]
[400726051,1767800618117,-500.0,0.00015223,2]
[400726052,1767800618168,-500.0,0.00015223,2]
[400726053,1767800618329,-500.0,0.00015223,2]
[400726054,1767800618374,-500.0,0.00015223,2]
[400726055,1767800618416,-500.0,0.00015223,2]
[400726056,1767800618459,-573.24110255,0.00015223,2]
[400726057,1767800618502,-500.0,0.00015223,2]
[400726058,1767800682517,162.63,0.00032877,120]
[400726059,1767800710262,-1119.4526461,0.00015124,2]
[400726060,1767800710299,-672.72437069,0.00015124,2]
[400726061,1767800710333,-776.6986,0.00015124,2]
[400726062,1767800710367,-300.0,0.00015223,2]
[400726063,1767800710403,-300.0,0.00015223,2]
[400726064,1767800710440,-1200.0,0.00015223,2]
[400726065,1767800710474,-300.0,0.00015223,2]
[400726066,1767800710520,-315.76866913,0.00015223,2]
[400726067,1767800710805,-30.72142816,0.00015223,2]
[400726068,1767800710850,150.0,0.00015,2]
[400726069,1767800733476,171.0,9e-07,2]
[400726070,1767800740728,-4108.7785,0.00015124,2]
[400726071,1767800740768,-500.0,0.00015223,2]
[400726072,1767800740810,-282.453,0.00015223,2]
[400726073,1767800741208,-217.547,0.00015223,2]
[400726074,1767800748630,-2500.0,0.00015124,2]
[400726075,1767800748666,-151.0,0.00015224,2]
[400726076,1767800748701,-300.0,0.00015224,2]
[400726077,1767800750800,-4098.01,0.00015224,2]
[400726085,1767800835794,4152.33,7.858e-05,2]
[400726086,1767800836001,4152.33,8.256e-05,2]
[400726087,1767800836133,4152.33,8.653e-05,2]
[400726088,1767800836323,4152.33,9.051e-05,2]
[400726089,1767800836516,4152.33,9.448e-05,2]
[400726090,1767800836789,4152.33,9.845e-05,2]
[400726091,1767800837524,4152.33,0.00010243,2]
[400726092,1767800837675,4152.33,0.0001064,2]
[400726093,1767800837927,4152.33,0.00011037,2]
[400726094,1767800838122,4152.33,0.00011435,2]
[400726095,1767800838328,4152.33,0.00011832,2]
[400726096,1767800838517,4152.33,0.00012229,2]
[400726097,1767800838679,4152.33,0.00012627,2]
[400726098,1767800839141,4152.33,0.00013024,2]
[400726099,1767800839363,4152.33,0.00013422,2]
[400726100,1767800839562,4152.33,0.00013819,2]
[400726101,1767800839714,4152.33,0.00014216,2]
[400726102,1767800840048,4152.33,0.00014614,2]
[400726104,1767800870989,3189.882922,0.00014936,2]
[400726119,1767801032173,-1200.0,0.0001501,2]
[400726120,1767801032186,-275.0,0.0001501,2]
[400726121,1767801032197,-490.13677849,0.00015011,2]
[400726122,1767801032208,-490.13677849,0.00015011,2]
[400726123,1767801032220,-490.13677849,0.00015011,2]
[400726124,1767801032232,-4152.33,0.00015011,2]
[400726125,1767801032243,-578.92156539,0.00015031,2]
[400726126,1767801032253,-5273.90374063,0.00015032,2]
[400726127,1767801032395,-1903.7200289,0.00015032,2]
[400726128,1767801032842,-424.03221248,0.00015032,2]
[400726129,1767801032896,-13193.78094539,0.00015032,2]
[400726130,1767801032906,-300.0,0.00015123,2]
[400726131,1767801032916,-300.0,0.00015123,2]
[400726132,1767801032926,-561.0883,0.00015124,2]
[400726133,1767801032937,-1201.811829,0.00015124,2]
[400726137,1767801033290,-3455.44836013,0.00015124,2]
[400726138,1767801033354,-1399.04411567,0.00015124,2]
[400726139,1767801033365,-291.47,0.00015124,2]
[400726140,1767801033435,-31624.84561806,0.00015124,2]
[400726141,1767801038497,-302.85216297,0.00015124,2]
[400726142,1767801038510,-961724.52791417,0.00015124,2]
[400726143,1767801038520,-979.52106532,0.00015132,2]
[400726144,1767801038529,-29064.3978951,0.00015132,2]
[400726145,1767801038539,-729.15430561,0.00015214,2]
[400726207,1767801039344,-16438.29011347,0.00015214,2]
[400726209,1767801039354,-500.0,0.00015223,2]
[400726211,1767801039364,-500.0,0.00015223,2]
[400726213,1767801039374,-1367.34,0.00015223,2]
[400726215,1767801039383,-1000.0,0.00015223,2]
[400726217,1767801039394,-500.0,0.00015223,2]
[400726219,1767801039404,-500.0,0.00015223,2]
[400726221,1767801039414,-500.0,0.00015223,2]
[400726223,1767801039423,-500.0,0.00015223,2]
[400726225,1767801039434,-500.0,0.00015223,2]
[400726227,1767801039446,-500.0,0.00015223,2]
[400726229,1767801039455,-500.0,0.00015223,2]
[400726231,1767801039465,-500.0,0.00015223,2]
[400726233,1767801039475,-500.0,0.00015223,2]
[400726235,1767801039484,-500.0,0.00015223,2]
[400726237,1767801039494,-500.0,0.00015223,2]
[400726239,1767801039503,-500.0,0.00015223,2]
[400726241,1767801039513,-500.0,0.00015223,2]
[400726243,1767801039523,-433.11872918,0.00015223,2]
[400726245,1767801039532,-500.0,0.00015223,2]
[400726247,1767801039542,-500.0,0.00015223,2]
[400726249,1767801039551,-500.0,0.00015223,2]
[400726251,1767801039561,-500.0,0.00015223,2]
[400726253,1767801039571,-500.0,0.00015223,2]
[400726256,1767801039581,-13937.25,0.00015232,2]
[400726258,1767801039591,-4314.3259,0.00015288,2]
[400726260,1767801039601,-517.38475435,0.00015324,2]
[400726262,1767801039610,-500.0,0.00015324,2]
[400726264,1767801039619,-500.0,0.00015324,2]
[400726266,1767801039629,-500.0,0.00015324,2]
[400726268,1767801039638,-500.0,0.00015324,2]
[400726270,1767801039657,-574.78,0.00015324,2]
[400726273,1767801039669,-574.78,0.00015324,2]
[400726275,1767801039679,-574.78,0.00015324,2]
[400726277,1767801039688,-574.78,0.00015324,2]
[400726279,1767801039698,-500.0,0.00015324,2]
[400726281,1767801039708,-500.0,0.00015324,2]
[400726283,1767801039717,-500.0,0.00015324,2]
[400726285,1767801039727,-500.0,0.00015324,2]
[400726287,1767801039737,-9999.99,0.00015324,2]
[400726289,1767801039747,-5907.01,0.00015324,2]
[400726291,1767801039757,-9999.99,0.00015324,2]
[400726293,1767801039767,-150.99,0.00015324,2]
[400726295,1767801039776,-150.99,0.00015324,2]
[400726297,1767801039786,-500.0,0.00015324,2]
[400726299,1767801039796,-20795.43692734,0.00015351,2]
[400726301,1767801039806,-323.63,0.00015373,2]
[400726303,1767801039816,-999.99,0.00015373,2]
[400726305,1767801039825,-981.18924201,0.00015399,2]
[400726307,1767801039836,-4152.33,0.00015408,2]
[400726309,1767801039845,-18523.28,0.00015409,2]
[400726311,1767801039855,-500.0,0.00015409,2]
[400726313,1767801039865,-500.0,0.00015409,2]
[400726315,1767801039875,-37842.67,0.00015409,2]
[400726317,1767801039884,-19999.99,0.00015409,2]
[400726319,1767801039894,-206.1,0.00015409,2]
[400726321,1767801039904,-200.0,0.00015409,2]
[400726323,1767801039913,-337.15,0.00015432,2]
[400726325,1767801039923,-29064.39789505,0.0001544,2]
[400726327,1767801039933,-1367.34,0.00015497,2]
[400726329,1767801039944,-979.52106529,0.00015527,2]
[400726331,1767801039954,-500.0,0.00015598,2]
[400726333,1767801039963,-578.92156538,0.00015619,2]
[400726335,1767801039974,-20795.43692734,0.00015669,2]
[400726337,1767801039984,-75816.10861511,0.00015688,2]
[400726339,1767801039994,-299.99,0.00015688,2]
[400726341,1767801040003,-500.0,0.0001574,2]
[400726343,1767801040014,-29064.39789505,0.00015747,2]
[400726345,1767801040023,-255.08,0.00015758,2]
[400726347,1767801040034,-1367.34,0.00015771,2]
[400726349,1767801040044,-151.0,0.00015809,2]
[400726351,1767801040054,-151.0,0.00015816,2]
[400726353,1767801040063,-151.0,0.00015829,2]
[400726355,1767801040073,-500.0,0.00015872,2]
[400726357,1767801040082,-5075.0049979,0.000159,2]
[400726359,1767801040091,-5075.0049979,0.000159,2]
[400726361,1767801040102,-5075.0049979,0.000159,2]
[400726363,1767801040112,-979.52106529,0.00015923,2]
[400726365,1767801040121,-20795.43692734,0.00015988,2]
[400726368,1767801040132,-500.0,0.00015999,2]
[400726369,1767801040147,-574.78,0.00015999,2]
[400726372,1767801040158,-500.0,0.00015999,2]
[400726374,1767801040168,-319.62234569,0.00016024,2]
[400726375,1767801040179,-541.44677491,0.00016024,2]
[400726377,1767801040189,-787.00253055,0.00016024,2]
[400726379,1767801040199,-1367.34,0.00016045,2]
[400726381,1767801040209,-29064.39789505,0.00016055,2]
[400726383,1767801040219,-1100.0,0.0001607,2]
[400726385,1767801040228,-9999.99,0.00016116,2]
[400726387,1767801040238,-500.0,0.00016146,2]
[400726389,1767801040247,-578.92156538,0.00016207,2]
[400726391,1767801040257,-1771.11541176,0.00016248,2]
[400726393,1767801040267,-155.2,0.00016283,2]
[400726395,1767801040277,-578.20924308,0.00016307,2]
[400726397,1767801040286,-500.0,0.00016307,2]
[400726399,1767801040296,-500.0,0.00016307,2]
[400726401,1767801040306,-500.0,0.00016307,2]
[400726403,1767801040316,-500.0,0.00016307,2]
[400726406,1767801040325,-500.0,0.00016307,2]
[400726408,1767801040335,-500.0,0.00016307,2]
[400726410,1767801040345,-500.0,0.00016307,2]
[400726412,1767801040355,-500.0,0.00016307,2]
[400726414,1767801040364,-500.0,0.00016307,2]
[400726415,1767801040374,-255.49772714,0.00016307,2]
[400726417,1767801040384,-500.0,0.00016307,2]
[400726419,1767801040394,-2000.0,0.00016307,2]
[400726421,1767801040403,-500.0,0.00016307,2]
[400726424,1767801040413,-2000.0,0.00016307,2]
[400726425,1767801040423,-500.0,0.00016307,2]
[400726427,1767801040433,-2000.0,0.00016307,2]
[400726429,1767801040443,-500.0,0.00016307,2]
[400726431,1767801040453,-2000.0,0.00016307,2]
[400726433,1767801040463,-500.0,0.00016307,2]
[400726435,1767801040472,-2000.0,0.00016307,2]
[400726437,1767801040482,-327.23086226,0.00016307,2]
[400726439,1767801040492,-2000.0,0.00016307,2]
[400726441,1767801040501,-2000.0,0.00016307,2]
[400726443,1767801040511,-322.6107,0.00016307,2]
[400726445,1767801040521,-2000.0,0.00016307,2]
[400726447,1767801040531,-2000.0,0.00016307,2]
[400726449,1767801040541,-2000.0,0.00016307,2]
[400726451,1767801040551,-2000.0,0.00016307,2]
[400726454,1767801040561,-620.0,0.00016307,2]
[400726455,1767801040570,-1500.0,0.00016307,2]
[400726457,1767801040580,-1500.0,0.00016307,2]
[400726459,1767801040590,-200.0,0.00016307,2]
[400726461,1767801040599,-1500.0,0.00016307,2]
[400726464,1767801040609,-500.0,0.00016307,2]
[400726466,1767801040624,-207.4,0.00016307,2]
[400726468,1767801040634,-1500.0,0.00016307,2]
[400726470,1767801040644,-500.0,0.00016307,2]
[400726472,1767801040654,-215.0738,0.00016307,2]
[400726474,1767801040665,-500.0,0.00016307,2]
[400726476,1767801040675,-1500.0,0.00016307,2]
[400726478,1767801040685,-223.0315306,0.00016307,2]
[400726480,1767801040695,-500.0,0.00016307,2]
[400726482,1767801040705,-1500.0,0.00016307,2]
[400726484,1767801040715,-448.72451731,0.00016307,2]
[400726485,1767801040724,-231.28369723,0.00016307,2]
[400726486,1767801040734,-1500.0,0.00016307,2]
[400726487,1767801040745,-500.0,0.00016307,2]
[400726488,1767801040755,-239.84119403,0.00016307,2]
[400726489,1767801040765,-151.55763012,0.00016307,2]
[400726490,1767801040776,-500.0,0.00016307,2]
[400726491,1767801040787,-957.13206838,0.00016307,2]
[400726492,1767801040798,-248.71531821,0.00016307,2]
[400726493,1767801040808,-500.0,0.00016307,2]
[400726494,1767801040817,-257.91778498,0.00016307,2]
[400726495,1767801040828,-500.0,0.00016307,2]
[400726496,1767801040838,-267.46074303,0.00016307,2]
[400726497,1767801040847,-277.35679052,0.00016307,2]
[400726498,1767801040857,-500.0,0.00016307,2]
[400726499,1767801040867,-500.0,0.00016307,2]
[400726500,1767801040876,-500.0,0.00016307,2]
[400726501,1767801040886,-250.0,0.00016307,2]
[400726502,1767801040896,-250.0,0.00016307,2]
[400726504,1767801040906,-250.0,0.00016307,2]
[400726506,1767801040916,-250.0,0.00016307,2]
[400726508,1767801040926,-250.0,0.00016307,2]
[400726510,1767801040935,-250.0,0.00016307,2]
[400726512,1767801040948,-250.0,0.00016307,2]
[400726514,1767801040958,-250.0,0.00016307,2]
[400726516,1767801040967,-250.0,0.00016307,2]
[400726518,1767801040977,-250.0,0.00016307,2]
[400726520,1767801040986,-250.0,0.00016307,2]
[400726522,1767801040996,-979.52106529,0.00016318,2]
[400726524,1767801041006,-1367.34,0.00016319,2]
[400726527,1767801041016,-600.0,0.00016361,2]
[400726529,1767801041025,-29064.39789505,0.00016362,2]
[400726531,1767801041035,-4091.48118458,0.00016413,2]
[400726533,1767801041045,-506.85863405,0.0001642,2]
[400726535,1767801041054,-500.0,0.00016424,2]
[400726537,1767801041064,-574.78,0.00016424,2]
[400726538,1767801041074,-500.0,0.00016424,2]
[400726539,1767801041083,-151.0,0.00016435,2]
[400726540,1767801041092,-15207.35294742,0.00016437,2]
[400726541,1767801041102,-1141.51636188,0.00016438,2]
[400726542,1767801041112,-1141.51636188,0.00016438,2]
[400726543,1767801041121,-1141.51636188,0.00016438,2]
[400726544,1767801041132,-1141.51636188,0.00016438,2]
[400726545,1767801041144,-1141.51636188,0.00016438,2]
[400726546,1767801041153,-1141.51636188,0.00016438,2]
[400726547,1767801041163,-1141.51636188,0.00016438,2]
[400726548,1767801041173,-1141.51636188,0.00016438,2]
[400726549,1767801041183,-1141.51636188,0.00016438,2]
[400726550,1767801041193,-1141.51636188,0.00016438,2]
[400726551,1767801041204,-1141.51636188,0.00016438,2]
[400726552,1767801041214,-1141.51636188,0.00016438,2]
[400726553,1767801041223,-1141.51636188,0.00016438,2]
[400726554,1767801041234,-1141.51636188,0.00016438,2]
[400726555,1767801041244,-1141.51636188,0.00016438,2]
[400726556,1767801041253,-1141.51636188,0.00016438,2]
[400726557,1767801041263,-1141.51636188,0.00016438,2]
[400726558,1767801041273,-1141.51636188,0.00016438,2]
[400726560,1767801041283,-1141.51636188,0.00016438,2]
[400726562,1767801041292,-1141.51636188,0.00016438,2]
[400726564,1767801041302,-1141.51636188,0.00016438,2]
[400726566,1767801041311,-1141.51636188,0.00016438,2]
[400726568,1767801041321,-1141.51636188,0.00016438,2]
[400726570,1767801041331,-1141.51636188,0.00016438,2]
[400726572,1767801041341,-1141.51636188,0.00016438,2]
[400726574,1767801041350,-1141.51636188,0.00016438,2]
[400726576,1767801041360,-1141.51636188,0.00016438,2]
[400726578,1767801041370,-1141.51636188,0.00016438,2]
[400726581,1767801041382,-1141.51636188,0.00016438,2]
[400726583,1767801041391,-1141.51636188,0.00016438,2]
[400726585,1767801041406,-1141.51636188,0.00016438,2]
[400726587,1767801041416,-1141.51636188,0.00016438,2]
[400726589,1767801041426,-1141.51636188,0.00016438,2]
[400726591,1767801041436,-1141.51636188,0.00016438,2]
[400726593,1767801041447,-1141.51636188,0.00016438,2]
[400726595,1767801041457,-1141.51636188,0.00016438,2]
[400726597,1767801041467,-1141.51636188,0.00016438,2]
[400726600,1767801041477,-1141.51636188,0.00016438,2]
[400726602,1767801041487,-1141.51636188,0.00016438,2]
[400726604,1767801041497,-1141.51636188,0.00016438,2]
[400726606,1767801041507,-1141.51636188,0.00016438,2]
[400726608,1767801041517,-1141.51636188,0.00016438,2]
[400726610,1767801041528,-1141.51636188,0.00016438,2]
[400726612,1767801041538,-1141.51636188,0.00016438,2]
[400726614,1767801041548,-1141.51636188,0.00016438,2]
[400726616,1767801041558,-1141.51636188,0.00016438,2]
[400726618,1767801041568,-1141.51636188,0.00016438,2]
[400726620,1767801041577,-1141.51636188,0.00016438,2]
[400726622,1767801041587,-1141.51636188,0.00016438,2]
[400726624,1767801041596,-1125.20898529,0.00016438,2]
[400726626,1767801041606,-1125.20898529,0.00016438,2]
[400726628,1767801041616,-1125.20898529,0.00016438,2]
[400726630,1767801041626,-1125.20898529,0.00016438,2]
[400726632,1767801041636,-1125.20898529,0.00016438,2]
[400726634,1767801041646,-1125.20898529,0.00016438,2]
[400726636,1767801041655,-1125.20898529,0.00016438,2]
[400726638,1767801041665,-1125.20898529,0.00016438,2]
[400726640,1767801041675,-1125.20898529,0.00016438,2]
[400726642,1767801041685,-1125.20898529,0.00016438,2]
[400726644,1767801041696,-1125.20898529,0.00016438,2]
[400726646,1767801041707,-1125.20898529,0.00016438,2]
[400726649,1767801041717,-1125.20898529,0.00016438,2]
[400726651,1767801041727,-1125.20898529,0.00016438,2]
[400726652,1767801041736,-1125.20898529,0.00016438,2]
[400726654,1767801041746,-1125.20898529,0.00016438,2]
[400726657,1767801041756,-1125.20898529,0.00016438,2]
[400726658,1767801041766,-1125.20898529,0.00016438,2]
[400726661,1767801041776,-1125.20898529,0.00016438,2]
[400726662,1767801041786,-1125.20898529,0.00016438,2]
[400726664,1767801041796,-1125.20898529,0.00016438,2]
[400726667,1767801041807,-1125.20898529,0.00016438,2]
[400726669,1767801041816,-1125.20898529,0.00016438,2]
[400726671,1767801041826,-1125.20898529,0.00016438,2]
[400726673,1767801041836,-1125.20898529,0.00016438,2]
[400726675,1767801041845,-1125.20898529,0.00016438,2]
[400726677,1767801041855,-1125.20898529,0.00016438,2]
[400726679,1767801041864,-1125.20898529,0.00016438,2]
[400726681,1767801041874,-1125.20898529,0.00016438,2]
[400726683,1767801041885,-1125.20898529,0.00016438,2]
[400726685,1767801041895,-1125.20898529,0.00016438,2]
[400726687,1767801041904,-1113.95689543,0.00016438,2]
[400726689,1767801041913,-1113.95689543,0.00016438,2]
[400726691,1767801041923,-1113.95689543,0.00016438,2]
[400726693,1767801041933,-1113.95689543,0.00016438,2]
[400726695,1767801041944,-1113.95689543,0.00016438,2]
[400726697,1767801041953,-1113.95689543,0.00016438,2]
[400726699,1767801041963,-1113.95689543,0.00016438,2]
[400726701,1767801041972,-1113.95689543,0.00016438,2]
[400726703,1767801041982,-1113.95689543,0.00016438,2]
[400726705,1767801041991,-1113.95689543,0.00016438,2]
[400726707,1767801042001,-15499.88,0.00016438,2]
[400726709,1767801042011,-1680.0,0.00016511,2]
[400726711,1767801042020,-250.0,0.00016512,2]
[400726754,1767801042410,-300.0,0.00016512,2]
[400726756,1767801042421,-195.0,0.00016512,2]
[400726758,1767801042430,-420.0,0.00016549,2]
[400726760,1767801042439,-420.0,0.00016549,2]
[400726762,1767801042450,-1000.0,0.00016571,2]
[400726764,1767801042461,-500.0,0.0001658,2]
[400726766,1767801042471,-500.93985952,0.0001658,2]
[400726768,1767801042481,-165.31618738,0.0001658,2]
[400726770,1767801042491,-500.0,0.0001658,2]
[400726772,1767801042501,-175.21486475,0.0001658,2]
[400726774,1767801042511,-538.59757642,0.0001658,2]
[400726776,1767801042520,-169.74559645,0.0001658,2]
[400726778,1767801042530,-500.0,0.0001658,2]
[400726780,1767801042539,-224.66209336,0.0001658,2]
[400726781,1767801042549,-500.0,0.0001658,2]
[400726783,1767801042558,-536.66734105,0.0001658,2]
[400726785,1767801042568,-500.0,0.0001658,2]
[400726787,1767801042578,-438.43604995,0.0001658,2]
[400726789,1767801042587,-163.2920989,0.0001658,2]
[400726791,1767801042597,-500.0,0.0001658,2]
[400726793,1767801042607,-500.0,0.0001658,2]
[400726795,1767801042618,-500.0,0.0001658,2]
[400726798,1767801042628,-500.0,0.0001658,2]
[400726800,1767801042638,-500.0,0.0001658,2]
[400726802,1767801042648,-500.0,0.0001658,2]
[400726803,1767801042658,-500.0,0.0001658,2]
[400726806,1767801042669,-500.0,0.0001658,2]
[400726807,1767801042681,-500.0,0.0001658,2]
[400726809,1767801042691,-485.97527636,0.0001658,2]
[400726811,1767801042701,-500.0,0.0001658,2]
[400726813,1767801042711,-500.0,0.0001658,2]
[400726815,1767801042721,-169.0457871,0.0001658,2]
[400726817,1767801042731,-500.0,0.0001658,2]
[400726820,1767801042741,-500.0,0.0001658,2]
[400726821,1767801042751,-500.0,0.0001658,2]
[400726823,1767801042761,-162.472435,0.0001658,2]
[400726826,1767801042772,-500.0,0.0001658,2]
[400726827,1767801042782,-500.0,0.0001658,2]
[400726829,1767801042791,-500.0,0.0001658,2]
[400726831,1767801042801,-500.0,0.0001658,2]
[400726833,1767801042811,-166.24303816,0.0001658,2]
[400726836,1767801042822,-500.0,0.0001658,2]
[400726838,1767801042832,-500.0,0.0001658,2]
[400726840,1767801042845,-500.0,0.0001658,2]
[400726842,1767801042854,-500.0,0.0001658,2]
[400726844,1767801042864,-236.4594886,0.0001658,2]
[400726846,1767801042873,-500.0,0.0001658,2]
[400726848,1767801042883,-1367.34,0.00016593,2]
[400726850,1767801042892,-1440.43669976,0.00016596,2]
[400726852,1767801042902,-255.08,0.00016633,2]
[400726854,1767801042911,-1386.26860543,0.00016645,2]
[400726856,1767801042920,-250.0,0.00016661,2]
[400726858,1767801042931,-29064.39789505,0.0001667,2]
[400726860,1767801042940,-979.52106529,0.00016714,2]
[400726862,1767801042952,-152.10889041,0.00016745,2]
[400726864,1767801042963,-300.0,0.00016745,2]
[400726866,1767801042974,-5000.0,0.00016745,2]
[400726868,1767801042983,-5000.0,0.00016745,2]
[400726870,1767801042993,-4685.70338709,0.00016745,2]
[400726872,1767801043003,-250.0,0.00016745,2]
[400726874,1767801043012,-600.0,0.00016746,2]
[400726876,1767801043022,-600.0,0.00016746,2]
[400726879,1767801043032,-600.0,0.00016746,2]
[400726881,1767801043043,-600.0,0.00016746,2]
[400726883,1767801043053,-300.0,0.00016746,2]
[400726885,1767801043062,-2500.0,0.00016746,2]
[400726887,1767801043072,-193.0,0.00016746,2]
[400726889,1767801043081,-431.63,0.00016763,2]
[400726891,1767801043091,-857.95,0.00016779,2]
[400726893,1767801043100,-231.0,0.00016849,2]
[400726895,1767801043110,-1386.26860537,0.00016854,2]
[400726897,1767801043120,-1367.34,0.00016867,2]
[400726899,1767801043130,-1100.0,0.00016916,2]
[400726901,1767801043143,-29064.39789505,0.00016977,2]
[400726903,1767801043152,-250.0,0.00016986,3]
[400726905,1767801043162,-250.0,0.00017,2]
[400726907,1767801043172,-191.0,0.00017,2]
[400726909,1767801043182,-1386.26860537,0.00017063,2]
[400726911,1767801043195,-979.52106529,0.00017109,2]
[400726913,1767801043205,-1000.0,0.00017128,2]
[400726915,1767801043215,-1000.0,0.00017128,2]
[400726917,1767801043225,-1000.0,0.00017128,2]
[400726918,1767801043235,-556.0741427,0.00017128,2]
[400726919,1767801043244,-1000.0,0.00017128,2]
[400726920,1767801043254,-911.91622264,0.00017128,2]
[400726921,1767801043263,-821.82288534,0.00017128,2]
[400726922,1767801043273,-502.16378022,0.00017128,2]
[400726924,1767801043283,-1029.13192156,0.00017128,2]
[400726926,1767801043294,-442.83023798,0.00017128,2]
[400726928,1767801043303,-1001.56852644,0.00017128,2]
[400726930,1767801043313,-1000.0,0.00017128,2]
[400726932,1767801043323,-1009.96734995,0.00017128,2]
[400726934,1767801043333,-1000.0,0.00017128,2]
[400726936,1767801043343,-1000.0,0.00017128,2]
[400726938,1767801043352,-519.44971303,0.00017128,2]
[400726940,1767801043362,-1000.0,0.00017128,2]
[400726942,1767801043371,-1000.0,0.00017128,2]
[400726944,1767801043381,-1000.0,0.00017128,2]
[400726946,1767801043391,-1000.0,0.00017128,2]
[400726948,1767801043401,-1000.0,0.00017128,2]
[400726950,1767801043410,-1367.34,0.00017141,2]
[400726952,1767801043420,-1038.06370607,0.00017168,2]
[400726954,1767801043430,-1206.75866986,0.00017168,2]
[400726956,1767801043439,-500.0,0.00017178,2]
[400726957,1767801043453,-250.0,0.0001726,3]
[400726959,1767801043463,-1386.26860537,0.00017273,2]
[400726961,1767801043473,-29064.39789505,0.00017285,2]
[400726963,1767801043483,-679.0,0.00017297,2]
[400726965,1767801043493,-679.0,0.00017299,2]
[400726967,1767801043502,-5888.0,0.00017323,2]
[400726969,1767801043512,-679.0,0.00017329,2]
[400726971,1767801043521,-1367.34,0.00017415,2]
[400726973,1767801043531,-300.0,0.00017442,2]
[400726975,1767801043540,-679.0,0.00017459,2]
[400726977,1767801043550,-1386.26860537,0.00017482,2]
[400726979,1767801043561,-2000.0,0.000175,2]
[400726982,1767801043570,-216.47,0.000175,2]
[400726984,1767801043580,-979.52106529,0.00017505,2]
[400726985,1767801043590,-255.08,0.00017509,2]
[400726987,1767801043600,-1688.95959214,0.00017572,2]
[400726989,1767801043610,-29064.39789505,0.00017592,2]
[400726992,1767801043620,-300.0,0.00017594,2]
[400726994,1767801043630,-300.0,0.00017596,2]